bitfinex-derivatives/quotes_BTCF0:USTF0_20250422
["timestamp","ask_amount","ask_price","bid_price","bid_amount"]
[1745340448258,0.1575,90868.0,90867.0,0.054]
[1745340449062,0.1595,90868.0,90867.0,0.058]
[1745340454762,0.1595,90868.0,90867.0,0.4188]
[1745340455060,0.1595,90868.0,90867.0,0.3995399]
[1745340455963,0.1595,90868.0,90867.0,0.38312574]
[1745340456854,0.1595,90868.0,90867.0,0.3793684]
[1745340458458,0.1595,90868.0,90867.0,0.33974734]
[1745340459763,0.1595,90868.0,90867.0,0.41974734]
[1745340460967,0.1595,90868.0,90867.0,0.1]
[1745340461173,0.2694815,90868.0,90867.0,0.1]
[1745340461656,0.4162815,90868.0,90867.0,0.1]
[1745340462263,0.4162815,90868.0,90867.0,0.08]
[1745340463267,0.6082815,90868.0,90867.0,0.08]
[1745340463566,0.4983,90868.0,90867.0,0.08]
[1745340463772,0.4983,90868.0,90867.0,0.05358314]
[1745340464067,0.4983,90868.0,90867.0,0.03432085]
[1745340464366,0.3063,90868.0,90867.0,0.03432085]
[1745340464570,0.3063,90868.0,90867.0,0.05432085]
[1745340465259,0.4162815,90868.0,90867.0,0.05432085]
[1745340466667,0.4162815,90868.0,90867.0,0.03432085]
[1745340467174,0.6082815,90868.0,90867.0,0.03432085]
[1745340467670,0.1099996,90853.0,90851.0,0.0001651]
[1745340467869,0.1964796,90853.0,90852.0,0.06]
[1745340468069,0.72408,90853.0,90852.0,0.02]
[1745340468270,0.1100117,90843.0,90842.0,0.22488653]
[1745340468476,0.1100117,90843.0,90842.0,0.14]
[1745340468969,0.2594117,90843.0,90842.0,0.14]
[1745340469280,0.5533117,90843.0,90842.0,0.14]
[1745340469568,0.5533117,90843.0,90842.0,0.18136825]
[1745340470165,0.5543117,90843.0,90842.0,0.18336825]
[1745340470771,0.5553117,90843.0,90842.0,0.18636825]
[1745340471165,0.5553117,90843.0,90842.0,0.16636825]
[1745340473273,0.1100226,90834.0,90833.0,0.00181643]
[1745340473579,0.1100226,90834.0,90833.0,0.34166643]
[1745340474262,0.4105226,90834.0,90833.0,0.34166643]
[1745340474462,0.4115226,90834.0,90833.0,0.34566643]
[1745340474967,0.4125226,90834.0,90833.0,0.34766643]
[1745340475861,0.3025,90834.0,90833.0,0.34766643]
[1745340476062,0.4125226,90834.0,90833.0,0.34766643]
[1745340476371,0.3109064,90834.0,90833.0,0.34766643]
[1745340477662,0.781729,90834.0,90833.0,0.34766643]
[1745340477871,0.781729,90834.0,90833.0,0.20766643]
[1745340478063,0.973729,90834.0,90833.0,0.20766643]
[1745340478267,0.1100347,90824.0,90818.0,0.1535]
[1745340478473,0.1100408,90819.0,90818.0,0.1535]
[1745340478772,0.1100408,90819.0,90818.0,0.38973526]
[1745340478975,0.1100408,90819.0,90818.0,0.25]
[1745340479476,0.4130408,90819.0,90818.0,0.25]
[1745340479878,0.4130408,90819.0,90818.0,0.29137349]
[1745340480376,0.4140408,90819.0,90818.0,0.29337349]
[1745340480879,0.001,90819.0,90818.0,0.76428149]
[1745340481176,0.0084064,90834.0,90818.0,1.34808149]
[1745340481381,0.08628,90838.0,90818.0,1.34808149]
[1745340481382,0.1472,90833.0,90830.0,0.3608]
[1745340481572,0.1472,90833.0,90831.0,0.2968]
[1745340481771,0.1498,90832.0,90831.0,0.5214]
[1745340482577,0.1498,90832.0,90831.0,0.5021318]
[1745340483170,0.1508,90832.0,90831.0,0.5021318]
[1745340483375,0.1508,90832.0,90831.0,0.3603318]
[1745340483970,0.1508,90832.0,90831.0,0.3613318]
[1745340484174,0.622625,90832.0,90831.0,0.041]
[1745340484376,0.768725,90832.0,90831.0,0.041]
[1745340485168,0.1100396,90820.0,90819.0,0.37718653]
[1745340485373,0.1100396,90820.0,90819.0,0.54718653]
[1745340485873,0.4076396,90820.0,90819.0,0.54718653]
[1745340486273,0.4086396,90820.0,90819.0,0.54718653]
[1745340487477,0.4086396,90820.0,90819.0,0.17]
[1745340487685,0.4096396,90820.0,90819.0,0.13]
[1745340489383,0.4096396,90820.0,90819.0,0.2828]
[1745340489877,0.4096396,90820.0,90819.0,0.25636982]
[1745340490074,0.4096396,90820.0,90819.0,0.07374457]
[1745340490075,0.6016396,90820.0,90819.0,0.07374457]
[1745340490273,0.1100408,90819.0,90818.0,0.04137349]
[1745340490475,0.110042,90818.0,90817.0,0.00495502]
[1745340490677,0.1100553,90807.0,90806.0,0.21623887]
[1745340490878,0.1100553,90807.0,90806.0,0.33851055]
[1745340491085,0.3020553,90807.0,90806.0,0.12227168]
[1745340491280,0.6110553,90807.0,90806.0,0.05227168]
[1745340491480,0.6110553,90807.0,90800.0,0.1]
[1745340491481,0.1100578,90805.0,90800.0,0.1]
[1745340491680,0.1963778,90805.0,90800.0,0.1]
[1745340491881,0.1963778,90805.0,90801.0,0.147]
[1745340492079,0.3883778,90805.0,90801.0,0.147]
[1745340493675,0.3903778,90805.0,90800.0,0.1]
[1745340494682,0.3903778,90805.0,90804.0,0.01165192]
[1745340494877,0.3903778,90805.0,90804.0,0.01]
[1745340495281,0.3903778,90805.0,90804.0,0.06040866]
[1745340497987,0.1100626,90801.0,90800.0,0.1]
[1745340498185,0.1100626,90801.0,90800.0,0.14]
[1745340498890,0.2662626,90801.0,90800.0,0.14]
[1745340499077,0.2662626,90801.0,90800.0,0.19105974]
[1745340499280,0.2682626,90801.0,90800.0,0.17178272]
[1745340500083,0.2682626,90801.0,90800.0,0.13212713]
[1745340501388,0.2682626,90801.0,90800.0,0.11835783]
[1745340504088,0.2672626,90801.0,90800.0,0.11835783]
[1745340504286,0.2712626,90801.0,90800.0,0.11835783]
[1745340504882,0.7712626,90801.0,90800.0,0.11835783]
[1745340505082,0.9692626,90801.0,90800.0,0.11835783]
[1745340505883,1.07739461,90801.0,90800.0,0.09191977]
[1745340507187,1.07339461,90801.0,90800.0,0.09191977]
[1745340507391,1.07739461,90801.0,90800.0,0.07264147]
[1745340507781,1.07339461,90801.0,90800.0,0.02158173]
[1745340507994,0.1100687,90796.0,90795.0,0.00016519]
[1745340508197,0.6628687,90796.0,90795.0,0.09070453]
[1745340509097,0.4708687,90796.0,90795.0,0.09070453]
[1745340509290,0.7661687,90796.0,90795.0,0.09070453]
[1745340509692,0.7721687,90796.0,90795.0,0.09070453]
[1745340510194,1.0743047,90796.0,90795.0,0.00016519]
[1745340510790,1.0793047,90796.0,90795.0,0.00016519]
[1745340511884,0.1100747,90791.0,90790.0,0.03721919]
[1745340512101,0.1100747,90791.0,90790.0,0.01]
[1745340512692,0.4044747,90791.0,90790.0,0.01]
[1745340513092,0.5964747,90791.0,90790.0,0.01]
[1745340513485,1.1004747,90791.0,90790.0,0.01]
[1745340513995,0.1100784,90788.0,90782.0,0.1453]
[1745340514197,0.20432175,90788.0,90787.0,0.04495666]
[1745340514493,0.20432175,90788.0,90787.0,0.09500587]
[1745340515089,0.20732175,90788.0,90787.0,0.09500587]
[1745340515290,0.12420175,90788.0,90787.0,0.09500587]
[1745340515486,0.01412335,90788.0,90787.0,0.05534729]
[1745340515692,0.12420175,90788.0,90787.0,0.07534729]
[1745340516289,0.27890175,90788.0,90787.0,0.05534729]
[1745340516492,0.27890175,90788.0,90787.0,0.07534729]
[1745340516689,0.63970175,90788.0,90787.0,0.23104729]
[1745340517396,0.63970175,90788.0,90787.0,0.21104729]
[1745340517594,0.63970175,90788.0,90787.0,0.19176818]
[1745340517800,0.86772175,90788.0,90787.0,0.22176818]
[1745340518999,0.86772175,90788.0,90787.0,0.06606818]
[1745340519190,1.05972175,90788.0,90787.0,0.06606818]
[1745340520094,0.86772175,90788.0,90787.0,0.06606818]
[1745340521893,0.86772175,90788.0,90787.0,0.03962805]
[1745340522092,0.86772175,90788.0,90787.0,0.00186092]
[1745340523699,0.86772175,90788.0,90787.0,0.05172286]
[1745340526204,0.86772175,90788.0,90787.0,0.03244353]
[1745340526407,0.86772175,90788.0,90787.0,0.04]
[1745340526906,0.86772175,90788.0,90781.0,0.00011057]
[1745340526907,0.1100856,90782.0,90781.0,0.05158096]
[1745340527114,0.1100856,90782.0,90781.0,0.00011057]
[1745340527321,0.2202416,90782.0,90781.0,0.00011057]
[1745340527510,0.4702416,90782.0,90781.0,7e-08]
[1745340527710,0.7599416,90782.0,90781.0,7e-08]
[1745340527913,1.2599416,90782.0,90781.0,7e-08]
[1745340528112,1.2599416,90782.0,90764.0,0.05052064]
[1745340528113,0.1101063,90765.0,90764.0,0.05052064]
[1745340528313,0.1101135,90759.0,90758.0,0.3039]
[1745340528513,0.1101135,90759.0,90758.0,0.4539]
[1745340528915,0.08612,90765.0,90758.0,0.50465595]
[1745340529224,0.08612,90765.0,90759.0,0.1546]
[1745340529419,0.1101095,90763.0,90759.0,0.2846]
[1745340529617,0.1101095,90763.0,90760.0,0.1513]
[1745340529921,0.08712,90765.0,90760.0,0.27485414]
[1745340530114,0.1101081,90764.0,90761.0,0.1429]
[1745340530314,0.1101081,90764.0,90761.0,0.2929]
[1745340530524,0.001,90763.0,90761.0,0.2929]
[1745340531029,0.001,90765.0,90761.0,0.2929]
[1745340531319,0.1101081,90764.0,90761.0,0.4849]
[1745340531713,0.001,90763.0,90761.0,0.4849]
[1745340531915,0.1111099,90763.0,90761.0,0.4849]
[1745340532311,0.1121099,90763.0,90761.0,0.47112667]
[1745340533115,0.1111099,90763.0,90762.0,0.1522]
[1745340533424,0.1111099,90763.0,90762.0,0.2422]
[1745340533623,0.1121099,90763.0,90762.0,0.2422]
[1745340534211,0.1121099,90763.0,90762.0,0.18325009]
[1745340536420,0.1121099,90763.0,90762.0,0.09]
[1745340536627,0.1121099,90763.0,90762.0,0.06245171]
[1745340538021,0.1121099,90763.0,90762.0,0.03600509]
[1745340539521,0.4062099,90763.0,90762.0,0.03600509]
[1745340540125,0.1101135,90759.0,90758.0,0.04708741]
[1745340540328,0.4709135,90759.0,90758.0,0.07]
[1745340541030,0.4709135,90759.0,90758.0,0.12196259]
[1745340541632,0.4719135,90759.0,90758.0,0.12196259]
[1745340542324,0.4729135,90759.0,90758.0,0.27456259]
[1745340542922,0.4729135,90759.0,90758.0,0.24150143]
[1745340544818,0.002,90759.0,90758.0,0.24150143]
[1745340545023,0.002,90759.0,90758.0,0.39520143]
[1745340545327,0.002,90759.0,90758.0,0.58720143]
[1745340545522,0.002,90759.0,90758.0,0.62720143]
[1745340546229,0.0550483,90773.0,90758.0,0.62720143]
[1745340546230,0.10067839,90786.0,90758.0,1.52475828]
[1745340546427,0.10067839,90786.0,90785.0,0.3608]
[1745340546629,0.10067839,90786.0,90785.0,0.4508]
[1745340546931,0.00812335,90788.0,90785.0,0.4508]
[1745340547128,0.0550362,90793.0,90786.0,0.3]
[1745340547328,0.0550362,90793.0,90786.0,0.35]
[1745340547630,0.00016519,90796.0,90786.0,0.35]
[1745340547830,0.00016519,90796.0,90793.0,0.3608]
[1745340548027,0.00016519,90796.0,90794.0,0.4401]
[1745340548330,0.00016519,90796.0,90794.0,0.5001]
[1745340549028,0.00216519,90796.0,90794.0,0.5001]
[1745340549327,0.00216519,90796.0,90794.0,0.6921]
[1745340549529,0.00216519,90796.0,90794.0,0.6931]
[1745340549731,0.10067839,90808.0,90795.0,0.11013999]
[1745340549929,0.10067839,90808.0,90804.0,0.3608]
[1745340550130,0.10067839,90808.0,90805.0,0.2953]
[1745340550326,0.10067839,90808.0,90805.0,0.495424]
[1745340550522,0.10067839,90808.0,90806.0,0.110124]
[1745340550730,0.10067839,90808.0,90806.0,0.200124]
[1745340550925,0.10067839,90808.0,90807.0,0.406124]
[1745340551125,0.00016519,90816.0,90807.0,0.486124]
[1745340551331,0.00016519,90816.0,90807.0,0.376]
[1745340551531,0.01,90808.0,90807.0,0.35672783]
[1745340551734,0.01,90808.0,90807.0,0.46685183]
[1745340552034,0.006,90808.0,90807.0,0.46685183]
[1745340552225,0.01,90808.0,90807.0,0.44142162]
[1745340552422,0.01,90808.0,90807.0,0.49779953]
[1745340552626,0.00016519,90816.0,90807.0,0.85859953]
[1745340552823,0.00016519,90816.0,90815.0,0.3608]
[1745340553032,0.00016519,90816.0,90815.0,0.74015087]
[1745340553537,0.00016519,90816.0,90815.0,0.72638668]
[1745340553728,0.00916519,90816.0,90815.0,0.72638668]
[1745340554235,0.00916519,90816.0,90815.0,0.91838668]
[1745340554630,0.00216519,90816.0,90815.0,0.91938668]
[1745340554837,0.00816519,90816.0,90815.0,0.91938668]
[1745340555837,0.1492,90826.0,90815.0,0.91938668]
[1745340556135,0.1492,90826.0,90816.0,0.65874964]
[1745340556437,0.1492,90826.0,90816.0,0.83874964]
[1745340557134,0.1492,90826.0,90816.0,1.03074964]
[1745340557738,0.1492,90826.0,90816.0,1.03174964]
[1745340557937,0.1492,90826.0,90825.0,0.3608]
[1745340558132,0.1492,90826.0,90825.0,0.4408]
[1745340558933,0.1492,90826.0,90825.0,0.4418]
[1745340559127,0.1492,90826.0,90825.0,0.6338]
[1745340559330,0.16265023,90834.0,90825.0,0.7469]
[1745340559539,0.1431,90833.0,90826.0,0.1437]
[1745340559734,0.005,90839.0,90826.0,0.25443265]
[1745340559933,0.005,90839.0,90833.0,0.3608]
[1745340560134,0.1424,90838.0,90833.0,0.4108]
[1745340560437,0.2848,90838.0,90833.0,0.4108]
[1745340560934,0.002,90834.0,90833.0,0.4108]
[1745340561337,0.2848,90838.0,90833.0,0.4108]
[1745340561535,0.2878,90838.0,90833.0,0.4108]
[1745340562736,0.1110226,90834.0,90833.0,0.03]
[1745340563038,0.1110226,90834.0,90826.0,0.21623887]
[1745340563039,0.1100262,90832.0,90826.0,0.21623887]
[1745340563237,0.1533,90831.0,90826.0,0.22623887]
[1745340563446,0.3059,90831.0,90826.0,0.22623887]
[1745340564047,0.3059,90831.0,90826.0,0.21247517]
[1745340564639,0.3069,90831.0,90826.0,0.21247517]
[1745340565136,0.3619132,90831.0,90826.0,0.21247517]
[1745340565338,0.1100279,90830.0,90826.0,0.01]
[1745340565533,0.4169266,90831.0,90826.0,0.01]
[1745340565731,0.3059,90829.0,90826.0,0.01]
[1745340566131,0.1100311,90827.0,90826.0,0.01]
[1745340566332,0.05502,90820.0,90816.0,0.00016519]
[1745340566537,0.1100432,90817.0,90816.0,0.09016519]
[1745340566738,0.1100432,90817.0,90816.0,0.07016519]
[1745340567445,0.4003432,90817.0,90816.0,0.07016519]
[1745340567629,0.4003432,90817.0,90816.0,0.00016519]
[1745340567836,0.4003432,90817.0,90816.0,0.06216519]
[1745340568031,0.4003432,90817.0,90816.0,0.04289305]
[1745340568236,0.2903,90817.0,90816.0,0.04289305]
[1745340569138,0.2903,90817.0,90816.0,0.04689305]
[1745340569745,0.2903,90817.0,90816.0,0.11689305]
[1745340569935,0.2903,90817.0,90816.0,0.11114797]
[1745340570133,0.2903,90817.0,90816.0,0.04114797]
[1745340572340,0.2913,90817.0,90816.0,0.04114797]
[1745340572539,0.2913,90817.0,90816.0,0.03714797]
[1745340572736,0.2913,90817.0,90816.0,0.03914797]
[1745340574347,0.2903,90817.0,90816.0,0.03914797]
[1745340574650,0.2903,90817.0,90816.0,0.02538315]
[1745340574954,0.4013432,90817.0,90816.0,0.02538315]
[1745340575140,0.2913,90817.0,90816.0,0.02538315]
[1745340575339,0.2913,90817.0,90807.0,0.26594603]
[1745340575540,0.2913,90817.0,90816.0,0.002]
[1745340575736,0.2913,90817.0,90816.0,0.022]
[1745340576336,0.2913,90817.0,90816.0,0.01793881]
[1745340576536,0.2913,90817.0,90807.0,0.26298968]
[1745340576742,0.2913,90817.0,90807.0,0.34415731]
[1745340577451,0.2903,90817.0,90807.0,0.13370767]
[1745340577647,0.1100485,90813.0,90807.0,0.13370767]
[1745340577846,0.3049,90812.0,90807.0,0.13370767]
[1745340578353,0.4149498,90812.0,90807.0,0.13370767]
[1745340578751,0.3049,90812.0,90807.0,0.13370767]
[1745340580146,0.3079,90812.0,90807.0,0.13370767]
[1745340580746,0.3079,90812.0,90807.0,0.13470767]
[1745340581052,0.3069,90812.0,90807.0,0.13470767]
[1745340581451,0.3069,90812.0,90807.0,0.13370767]
[1745340582250,0.3069,90812.0,90807.0,0.0940612]
[1745340582851,0.18680854,90811.0,90808.0,0.1467]
[1745340583051,0.18680854,90811.0,90808.0,0.55847517]
[1745340583346,0.18680854,90811.0,90808.0,0.53204554]
[1745340583648,0.1535,90810.0,90808.0,0.53204554]
[1745340584049,0.1535,90810.0,90809.0,0.1482]
[1745340584244,0.1535,90810.0,90809.0,0.2082]
[1745340584446,0.1535,90810.0,90809.0,0.3489]
[1745340584646,0.1535,90810.0,90809.0,0.33513483]
[1745340584851,0.1535,90810.0,90809.0,0.31586359]
[1745340585354,0.1535,90810.0,90809.0,0.50786359]
[1745340586041,0.1535,90810.0,90809.0,0.51086359]
[1745340586447,0.1535,90810.0,90809.0,0.64646359]
[1745340586749,0.1535,90810.0,90809.0,0.64746359]
[1745340586951,0.1535,90810.0,90809.0,0.65046359]
[1745340587250,0.1535,90810.0,90809.0,0.64846359]
[1745340588351,0.1535,90810.0,90809.0,0.9696199]
[1745340588757,0.1535,90810.0,90809.0,0.9676199]
[1745340589053,0.14780717,90810.0,90809.0,0.9706199]
[1745340589446,0.06154601,90817.0,90809.0,0.9706199]
[1745340589649,0.1448,90825.0,90809.0,1.3314199]
[1745340589852,0.1448,90825.0,90820.0,0.3608]
[1745340590046,0.1448,90825.0,90821.0,0.1356]
[1745340590250,0.1448,90825.0,90821.0,0.1856]
[1745340590652,0.1448,90825.0,90821.0,0.05]
[1745340591455,0.1448,90825.0,90821.0,0.04357128]
[1745340592046,0.1458,90825.0,90821.0,0.04357128]
[1745340592245,0.1468,90825.0,90821.0,0.04357128]
[1745340592445,0.1458,90825.0,90821.0,0.04357128]
[1745340592653,0.3057,90824.0,90821.0,0.04357128]
[1745340593359,0.3057,90824.0,90821.0,0.02430062]
[1745340593858,0.3067,90824.0,90821.0,0.02430062]
[1745340594456,0.3067,90824.0,90821.0,0.03]
[1745340594856,0.3067,90824.0,90821.0,0.01623524]
[1745340595057,0.3067,90824.0,90817.0,0.48435811]
[1745340595256,0.3067,90824.0,90817.0,0.53435811]
[1745340595566,0.3067,90824.0,90817.0,0.4108]
[1745340596762,0.3057,90824.0,90817.0,0.4118]
[1745340598754,0.4157348,90824.0,90817.0,0.4108]
[1745340599058,0.3077,90824.0,90817.0,0.4108]
[1745340599262,0.3077,90824.0,90817.0,0.38437101]
[1745340599462,0.3067,90824.0,90817.0,0.38437101]
[1745340599763,0.3097,90824.0,90817.0,0.38437101]
[1745340600162,0.3087,90824.0,90817.0,0.05]
[1745340600366,0.3637174,90824.0,90817.0,0.05]
[1745340600562,0.3067,90824.0,90817.0,0.05]
[1745340600764,0.3077,90824.0,90817.0,0.05]
[1745340601760,0.3077,90824.0,90817.0,0.03072879]
[1745340601761,0.08613015,90823.0,90817.0,0.03072879]
[1745340601958,0.3608,90820.0,90817.0,0.03072879]
[1745340602153,0.4708401,90820.0,90817.0,0.03]
[1745340602357,0.2761,90819.0,90817.0,0.03]
[1745340602553,0.3861409,90819.0,90817.0,0.03]
[1745340602955,0.110042,90818.0,90817.0,0.03]
[1745340603459,0.408042,90818.0,90817.0,0.011]
[1745340603658,0.298,90818.0,90817.0,0.011]
[1745340603854,0.408042,90818.0,90817.0,0.012]
[1745340604765,0.49417215,90818.0,90817.0,0.00766971]
[1745340605267,0.49417215,90818.0,90817.0,0.01]
[1745340605562,0.49917215,90818.0,90817.0,0.01]
[1745340605969,0.0550261,90810.0,90807.0,0.0140612]
[1745340606158,0.4307,90809.0,90807.0,0.06]
[1745340606359,0.4307,90809.0,90807.0,0.11491129]
[1745340606559,0.1100541,90808.0,90807.0,0.11491129]
[1745340606960,0.289,90808.0,90807.0,0.11491129]
[1745340607464,0.289,90808.0,90807.0,0.0894784]
[1745340608366,0.289,90808.0,90807.0,0.0904784]
[1745340608565,0.3990541,90808.0,90807.0,0.0904784]
[1745340608865,0.94666264,90808.0,90807.0,0.0904784]
[1745340609065,0.94666264,90808.0,90807.0,0.0894784]
[1745340609266,0.94866264,90808.0,90807.0,0.0884784]
[1745340609465,0.83860854,90808.0,90807.0,0.0894784]
[1745340609767,0.94666264,90808.0,90807.0,0.0894784]
[1745340609967,0.94866264,90808.0,90807.0,0.0894784]
[1745340610161,0.94866264,90808.0,90807.0,0.07020364]
[1745340610361,0.94866264,90808.0,90807.0,0.06920364]
[1745340610561,0.94966264,90808.0,90807.0,0.06920364]
[1745340611575,0.94866264,90808.0,90807.0,0.06920364]
[1745340611775,1.05878664,90808.0,90807.0,0.02205695]
[1745340611962,0.110059,90804.0,90803.0,0.00016519]
[1745340612163,0.1100675,90797.0,90796.0,0.00165207]
[1745340612358,0.1100675,90797.0,90796.0,0.04165207]
[1745340612664,0.1100675,90797.0,90796.0,0.02165207]
[1745340612865,0.5346675,90797.0,90796.0,0.06792658]
[1745340613166,0.5346675,90797.0,90796.0,0.02165207]
[1745340613468,0.5346675,90797.0,90796.0,0.02]
[1745340613671,0.5376675,90797.0,90796.0,0.02]
[1745340613872,0.5376675,90797.0,90796.0,0.06705623]
[1745340614173,0.5376675,90797.0,90796.0,0.02]
[1745340614571,0.5376675,90797.0,90796.0,0.023]
[1745340614767,0.6478035,90797.0,90796.0,0.023]
[1745340615073,0.8398035,90797.0,90796.0,0.023]
[1745340615270,0.8438035,90797.0,90796.0,0.021]
[1745340615458,0.1100772,90789.0,90782.0,0.01591268]
[1745340615658,0.2795,90788.0,90782.0,0.21]
[1745340616262,0.1100806,90787.0,90782.0,0.21]
[1745340616762,0.4272,90786.0,90782.0,0.25613111]
[1745340617159,0.5372812,90786.0,90782.0,0.25613111]
[1745340617869,0.4272,90786.0,90782.0,0.25613111]
[1745340618068,0.5372813,90786.0,90782.0,0.25613111]
[1745340618374,0.1100824,90785.0,90782.0,0.25613111]
[1745340618667,0.4272,90786.0,90782.0,0.25613111]
[1745340618668,0.1100834,90784.0,90782.0,0.25613111]
[1745340618869,0.2946,90784.0,90782.0,0.25613111]
[1745340619265,0.4046836,90784.0,90782.0,0.25613111]
[1745340619464,0.2946,90784.0,90782.0,0.25613111]
[1745340619861,0.4046833,90784.0,90782.0,0.25613111]
[1745340620069,0.1100844,90783.0,90782.0,0.25613111]
[1745340620468,0.4046844,90783.0,90782.0,0.25713111]
[1745340620671,0.4046844,90783.0,90782.0,0.2378519]
[1745340620858,0.4046844,90783.0,90782.0,0.17713111]
[1745340621467,0.4046844,90783.0,90782.0,0.17813111]
[1745340622262,0.4046844,90783.0,90782.0,0.17713111]
[1745340622574,0.4056844,90783.0,90782.0,0.17713111]
[1745340622970,0.4066844,90783.0,90782.0,0.17613111]
[1745340623370,0.4066844,90783.0,90782.0,0.14968897]
[1745340624373,0.4056844,90783.0,90782.0,0.14968897]
[1745340624674,0.4066844,90783.0,90782.0,0.14968897]
[1745340625671,0.4056844,90783.0,90782.0,0.14968897]
[1745340625876,0.4066844,90783.0,90782.0,0.14968897]
[1745340626271,0.4066844,90783.0,90782.0,0.11002655]
[1745340626465,0.4066844,90783.0,90782.0,0.09625488]
[1745340628770,0.4056844,90783.0,90782.0,0.09625488]
[1745340628975,0.4066844,90783.0,90782.0,0.09625488]
[1745340629172,0.4066844,90783.0,90782.0,0.07697451]
[1745340631474,0.4066844,90783.0,90782.0,0.05053435]
[1745340633976,0.4066844,90783.0,90782.0,0.02661808]
[1745340634276,0.4066844,90783.0,90782.0,0.06]
[1745340635178,0.5168364,90783.0,90782.0,0.06]
[1745340635378,0.1101111,90761.0,90755.0,0.3608]
[1745340635574,0.1958311,90761.0,90760.0,0.17165259]
[1745340636280,0.1958311,90761.0,90760.0,0.15576392]
[1745340636471,0.4955311,90761.0,90760.0,0.15576392]
[1745340636668,0.4965311,90761.0,90760.0,0.16176392]
[1745340636878,0.4975311,90761.0,90760.0,0.16776392]
[1745340637269,0.4975311,90761.0,90760.0,0.15398918]
[1745340639475,0.4975311,90761.0,90760.0,0.1275418]
[1745340639787,0.4975311,90761.0,90760.0,0.10825726]
[1745340640988,0.4975311,90761.0,90760.0,0.06858555]
[1745340642172,0.23732,90761.0,90760.0,0.06858555]
[1745340642382,0.00016519,90770.0,90760.0,0.06858555]
[1745340642577,0.1494,90769.0,90761.0,0.2772]
[1745340642881,0.1101087,90763.0,90762.0,0.1375]
[1745340643076,0.1101087,90763.0,90762.0,0.5347]
[1745340644282,0.1111087,90763.0,90762.0,0.5397]
[1745340645090,0.2571087,90763.0,90762.0,0.5397]
[1745340645484,0.2581087,90763.0,90762.0,0.5447]
[1745340646378,0.6189087,90763.0,90762.0,0.5447]
[1745340647373,0.6189087,90763.0,90762.0,0.51825317]
[1745340647683,0.6189087,90763.0,90762.0,0.4072]
[1745340647882,0.6189087,90763.0,90762.0,0.13]
[1745340648277,0.6189087,90763.0,90762.0,0.11071582]
[1745340648680,0.2581087,90763.0,90762.0,0.07104619]
[1745340648982,0.002,90763.0,90762.0,0.11104619]
[1745340649191,0.002,90763.0,90762.0,0.45144619]
[1745340649480,0.002,90763.0,90762.0,0.56162219]
[1745340650674,0.002,90763.0,90762.0,0.70632219]
[1745340651083,0.002,90763.0,90762.0,0.59614619]
[1745340652279,0.001,90763.0,90762.0,0.59114619]
[1745340652480,0.00016519,90770.0,90762.0,0.59214619]
[1745340652781,0.08613015,90763.0,90762.0,0.59214619]
[1745340652979,0.08613015,90763.0,90762.0,0.58914619]
[1745340653188,0.08713015,90763.0,90762.0,0.70232219]
[1745340653487,0.08713015,90763.0,90762.0,0.69932219]
[1745340653686,0.08713015,90763.0,90762.0,0.70032219]
[1745340653879,0.08613015,90763.0,90762.0,0.69732219]
[1745340654080,0.08713015,90763.0,90762.0,0.70032219]
[1745340654381,0.06543008,90763.0,90762.0,0.70032219]
[1745340654878,0.01403008,90763.0,90762.0,0.70032219]
[1745340655489,0.01403008,90763.0,90762.0,0.67488027]
[1745340655675,0.01503008,90763.0,90762.0,0.67888027]
[1745340655875,0.00636441,90763.0,90762.0,0.67888027]
[1745340656083,0.0083101,90784.0,90762.0,1.12525858]
[1745340656284,0.08564,90793.0,90778.0,0.3608]
[1745340656587,0.36454055,90787.0,90786.0,0.30186626]
[1745340656783,0.10067839,90797.0,90786.0,0.78839257]
[1745340656980,0.10067839,90797.0,90796.0,0.3608]
[1745340657181,0.10067839,90797.0,90796.0,0.6128]
[1745340658084,0.10067839,90797.0,90796.0,0.59903292]
[1745340658677,0.10067839,90797.0,90796.0,0.70916891]
[1745340659083,0.00016519,90801.0,90796.0,0.70916891]
[1745340659284,0.00822373,90801.0,90797.0,0.4257]
[1745340659587,0.00822373,90801.0,90797.0,0.5057]
[1745340659789,0.1472,90800.0,90797.0,0.5057]
[1745340661090,0.005,90809.0,90799.0,0.3608]
[1745340661290,0.2945,90823.0,90808.0,0.3608]
[1745340661587,0.2945,90823.0,90810.0,0.21044964]
[1745340661588,0.30264695,90823.0,90810.0,0.21044964]
[1745340661891,0.41268355,90823.0,90810.0,0.36044964]
[1745340662279,0.1100385,90821.0,90810.0,0.36044964]
[1745340662484,0.2945,90820.0,90810.0,0.36044964]
[1745340662681,0.2945,90820.0,90810.0,0.36144964]
[1745340663284,0.4045398,90820.0,90810.0,0.36144964]
[1745340663690,0.4045401,90820.0,90810.0,0.36244964]
[1745340663995,0.4095401,90820.0,90810.0,0.36244964]
[1745340664192,0.2995,90820.0,90810.0,0.36244964]
[1745340664692,0.2995,90820.0,90810.0,0.34317803]
[1745340665086,0.2995,90820.0,90810.0,0.34217803]
[1745340665282,0.3055,90820.0,90810.0,0.34317803]
[1745340666391,0.3055,90820.0,90810.0,0.55362767]
[1745340667191,0.3055,90820.0,90817.0,0.3608]
[1745340667389,0.3055,90820.0,90818.0,0.2813]
[1745340667600,0.3055,90820.0,90818.0,0.40730454]
[1745340668597,0.011,90820.0,90818.0,0.3935398]
[1745340668800,0.1465,90835.0,90819.0,0.30648631]
[1745340669003,0.1465,90835.0,90834.0,0.3608]
[1745340669193,0.1465,90835.0,90834.0,0.39516307]
[1745340669500,0.1465,90835.0,90834.0,0.46516307]
[1745340669895,0.00016519,90844.0,90834.0,0.46516307]
[1745340670194,0.00016519,90844.0,90835.0,0.1363]
[1745340670195,0.01343556,90839.0,90835.0,0.1363]
[1745340670396,0.00016519,90844.0,90835.0,0.2133]
[1745340670597,0.00016519,90844.0,90843.0,0.3608]
[1745340670900,0.00016519,90844.0,90843.0,0.4208]
[1745340671392,0.00853222,90844.0,90843.0,0.4208]
[1745340672899,0.01053222,90844.0,90843.0,0.4148]
[1745340673298,0.01653222,90844.0,90843.0,0.4158]
[1745340673495,0.12654272,90844.0,90843.0,0.3958]
[1745340674301,0.12654272,90844.0,90843.0,0.001]
[1745340674489,0.110019,90837.0,90836.0,0.19637831]
[1745340674695,0.110019,90837.0,90836.0,0.22637831]
[1745340674894,0.110019,90837.0,90836.0,0.20637831]
[1745340675293,0.392919,90837.0,90836.0,0.20637831]